bitfinex-derivatives/quotes_ETHF0:USTF0_20250904
["timestamp","ask_amount","ask_price","bid_price","bid_amount"]
[1756948945245,0.1911,4458.4,4458.3,1.37101981]
[1756948945442,0.228,4458.9,4458.3,1.66391981]
[1756948945749,0.9206,4458.9,4458.8,0.6854]
[1756948946541,0.228,4458.9,4458.8,0.6854]
[1756948946951,0.228,4459.3,4458.9,0.2929]
[1756948947255,0.9206,4459.3,4459.2,0.6854]
[1756948949048,0.4191,4459.3,4459.2,0.6854]
[1756948949243,0.9206,4459.3,4459.2,0.6854]
[1756948950151,0.4191,4459.3,4459.2,0.6854]
[1756948950342,0.305,4459.6,4459.2,0.6854]
[1756948950650,0.1911,4459.4,4459.3,0.6854]
[1756948950857,0.4961,4459.4,4459.3,0.6854]
[1756948951048,0.1911,4459.4,4459.3,0.6854]
[1756948951450,0.305,4459.7,4459.4,0.2929]
[1756948951650,0.5015,4459.5,4459.4,0.6854]
[1756948951848,0.8071,4459.5,4459.4,0.6854]
[1756948952150,0.228,4459.8,4459.4,0.6854]
[1756948952459,0.8071,4459.5,4459.4,0.203]
[1756948952642,0.4961,4459.5,4459.4,0.3925]
[1756948952842,0.6926,4459.5,4459.4,0.6854]
[1756948954758,0.4961,4459.5,4459.4,0.6854]
[1756948955060,0.6926,4459.5,4459.4,0.6854]
[1756948956560,0.8071,4459.5,4459.4,0.6854]
[1756948958161,0.6926,4459.5,4459.4,0.6854]
[1756948959860,0.8071,4459.5,4459.4,0.203]
[1756948962156,0.6926,4459.5,4459.4,0.7079]
[1756948963452,0.1911,4459.5,4459.4,0.7079]
[1756948963658,0.228,4459.9,4459.7,0.3981]
[1756948963954,0.228,4459.9,4459.5,0.1141]
[1756948963955,0.2938,4459.7,4459.0,0.1176]
[1756948964164,0.4903,4459.1,4459.0,0.5157]
[1756948964357,0.4903,4459.1,4459.0,0.8263]
[1756948964559,0.1965,4459.1,4459.0,0.8263]
[1756948965364,0.6891,4459.1,4459.0,0.7087]
[1756948965665,0.6891,4459.8,4459.7,0.2038]
[1756948965859,1.22079404,4459.8,4459.7,0.2038]
[1756948966058,1.22079404,4459.8,4459.7,0.5144]
[1756948966259,1.22079404,4459.8,4459.1,0.3106]
[1756948966458,0.6891,4459.2,4459.1,0.5144]
[1756948966759,0.6891,4459.2,4459.1,0.7087]
[1756948967358,0.1965,4459.2,4459.1,0.7087]
[1756948967555,0.6891,4459.9,4459.8,0.2038]
[1756948967760,1.22112322,4459.9,4459.8,0.5144]
[1756948968461,0.2938,4459.8,4459.2,0.3106]
[1756948968659,0.1965,4459.3,4459.2,0.7087]
[1756948969372,0.4903,4459.6,4459.5,0.8228]
[1756948969565,1.22165684,4459.6,4459.5,0.8228]
[1756948969865,1.22165684,4459.6,4459.5,0.7087]
[1756948974868,1.22165684,4459.6,4459.5,1.80131981]
[1756948975259,0.53255684,4459.6,4459.5,6.02555981]
[1756948975467,0.4903,4461.0,4460.9,0.3981]
[1756948975766,1.02378188,4461.0,4460.9,1.68721981]
[1756948976072,1.22258188,4461.0,4460.9,1.68721981]
[1756948976368,0.72998188,4461.0,4460.9,1.68721981]
[1756948976567,0.53348188,4461.0,4460.9,1.68721981]
[1756948977362,0.72998188,4461.0,4460.9,1.68721981]
[1756948977762,1.02378188,4461.0,4460.9,1.68721981]
[1756948978262,0.4903,4461.0,4460.9,1.68721981]
[1756948980571,0.8051,4461.5,4461.4,0.5144]
[1756948980768,1.33755965,4461.5,4461.4,0.5144]
[1756948981471,1.22155965,4461.5,4461.4,0.7087]
[1756948981966,0.53245965,4461.5,4461.4,0.7087]
[1756948982273,0.3953,4461.7,4461.6,0.5144]
[1756948982472,0.6891,4461.7,4461.6,0.2038]
[1756948983074,0.6891,4461.7,4461.6,0.5144]
[1756948983765,0.6891,4461.7,4461.6,0.2038]
[1756948984076,1.22112363,4461.7,4461.6,0.2038]
[1756948984272,1.22112363,4461.7,4461.6,0.7087]
[1756948985273,1.22112363,4461.7,4461.6,0.2038]
[1756948985474,1.22112363,4461.7,4461.6,0.5144]
[1756948985973,1.22112363,4461.7,4461.6,0.7087]
[1756948986768,0.53202363,4461.7,4461.6,0.7087]
[1756948987379,1.22112363,4461.7,4461.6,0.2038]
[1756948987675,1.22112363,4461.7,4461.6,0.7087]
[1756948987676,0.53202363,4461.7,4461.6,0.7087]
[1756948988170,0.53202363,4461.7,4461.6,4.93283]
[1756948988768,0.53202363,4461.7,4461.6,4.7087]
[1756948989373,0.53202363,4461.7,4461.6,0.7087]
[1756948989674,1.22112363,4461.7,4461.6,0.2038]
[1756948990076,1.22112363,4461.7,4461.6,0.5144]
[1756948990475,1.22112363,4461.7,4461.6,0.2038]
[1756948990676,1.22112363,4461.7,4461.2,0.3106]
[1756948990876,0.6891,4461.3,4461.2,0.5144]
[1756948991072,1.22112363,4461.3,4461.2,0.5144]
[1756948991376,1.22112363,4461.3,4461.2,0.2038]
[1756948991777,1.22112363,4461.3,4461.2,0.5144]
[1756948992176,1.22112363,4461.3,4460.9,0.97851981]
[1756948992376,0.6817,4460.7,4460.6,0.6987]
[1756948992571,0.116,4461.5,4460.6,0.3932]
[1756948992787,1.2125081,4461.4,4461.0,0.3055]
[1756948992976,0.6817,4461.0,4460.9,1.37171981]
[1756948993278,0.5308081,4461.0,4460.9,1.37171981]
[1756948993580,0.2067,4461.1,4461.0,0.3175]
[1756948993877,1.0212003,4461.1,4461.0,0.8147]
[1756948994079,0.4903,4461.1,4461.0,0.8147]
[1756948994280,0.6817,4461.1,4461.0,0.8147]
[1756948996179,0.6817,4461.1,4461.0,0.6987]
[1756948997882,0.1238,4461.5,4460.6,0.4972]
[1756948997883,0.6817,4460.7,4460.6,0.4972]
[1756948998076,0.1238,4461.0,4460.1,0.3055]
[1756948998077,0.6817,4460.4,4460.1,0.3055]
[1756948998372,0.2836,4460.3,4459.7,0.3055]
[1756948998576,0.6817,4459.8,4459.7,0.6987]
[1756948998977,0.6817,4459.8,4459.4,0.228]
[1756948999179,0.2836,4459.7,4459.2,1.28401981]
[1756948999478,0.4903,4459.3,4459.2,1.67721981]
[1756948999974,0.1238,4460.0,4459.2,1.37171981]
[1756949000186,0.6817,4460.1,4460.0,0.6987]
[1756949001089,0.6817,4460.8,4460.7,0.6987]
[1756949001279,1.21400612,4460.8,4460.7,0.6987]
[1756949001685,1.21400612,4460.8,4460.7,0.3932]
[1756949004984,0.93040612,4460.8,4460.6,0.81438917]
[1756949005187,0.5219,4460.5,4460.4,0.4972]
[1756949005488,0.6817,4460.5,4460.4,0.6987]
[1756949006781,0.8055,4460.5,4460.4,0.1917]
[1756949007477,0.8055,4460.5,4460.4,0.4972]
[1756949008191,0.8055,4460.5,4460.4,0.6987]
[1756949008793,0.2836,4460.4,4460.3,0.81438917]
[1756949008992,0.6817,4460.4,4460.3,0.81438917]
[1756949009199,0.2836,4460.3,4459.5,0.116]
[1756949009389,0.4903,4459.6,4459.5,0.5092]
[1756949009894,0.2067,4459.6,4459.5,0.8147]
[1756949010083,0.2836,4459.9,4459.6,0.3055]
[1756949010288,0.4903,4459.9,4459.8,0.3932]
[1756949010594,0.4903,4459.9,4459.8,1.51308917]
[1756949010893,0.6817,4459.9,4459.8,1.51308917]
[1756949011195,0.6817,4459.9,4459.8,1.00608917]
[1756949011388,0.6817,4459.9,4459.8,1.51308917]
[1756949017211,0.2836,4459.8,4459.2,0.81438917]
[1756949017409,0.4903,4459.3,4459.2,1.20758917]
[1756949017814,0.4903,4459.3,4459.2,1.51308917]
[1756949018507,0.2067,4459.3,4459.2,1.51308917]
[1756949018712,0.2836,4459.9,4459.3,0.3055]
[1756949018912,0.6817,4459.9,4459.8,0.1917]
[1756949019214,0.6817,4459.9,4459.8,0.6987]
[1756949022307,1.21403188,4459.9,4459.8,0.6987]
[1756949026608,0.7211,4459.7,4459.6,0.3071]
[1756949026815,0.7211,4459.4,4459.3,1.31798917]
[1756949027114,1.25380133,4459.4,4459.3,1.31798917]
[1756949027916,1.25380133,4459.4,4459.3,1.50808917]
[1756949028910,0.3119,4458.8,4458.1,1.12148917]
[1756949029115,0.2054,4458.2,4458.1,1.50808917]
[1756949030513,0.3119,4458.5,4458.1,1.50808917]
[1756949030718,0.5173,4458.5,4458.4,1.50808917]
[1756949031014,1.04952882,4458.5,4458.4,1.50808917]
[1756949031413,0.5173,4458.5,4458.4,1.50808917]
[1756949031616,1.25318972,4458.5,4458.4,1.50808917]
[1756949032316,1.31891344,4459.5,4458.5,0.1145]
[1756949032514,0.4092,4459.1,4459.0,1.20098917]
[1756949032715,0.7211,4459.1,4459.0,1.50808917]
[1756949033015,1.25509948,4459.1,4459.0,1.50808917]
[1756949033216,1.25509948,4459.1,4459.0,0.6937]
[1756949034114,0.4092,4458.9,4458.8,1.01088917]
[1756949034415,0.7211,4458.9,4458.8,0.81438917]
[1756949034616,0.7211,4458.9,4458.8,1.31798917]
[1756949034817,0.7211,4458.9,4458.8,1.50808917]
[1756949037013,0.7211,4458.9,4458.0,0.93038917]
[1756949037014,1.53548917,4458.9,4458.1,1.12148917]
[1756949037214,0.3119,4458.8,4458.4,0.81438917]
[1756949037418,0.1217,4459.0,4458.4,1.31798917]
[1756949037419,0.7211,4458.5,4458.4,1.31798917]
[1756949037808,0.7211,4458.5,4458.4,1.50808917]
[1756949040029,0.7211,4458.9,4458.8,0.6937]
[1756949040617,0.2054,4458.9,4458.8,0.6937]
[1756949040921,0.3497,4459.5,4458.8,1.20098917]
[1756949041115,0.3119,4458.8,4458.2,0.81438917]
[1756949041315,0.2054,4458.3,4458.2,1.20098917]
[1756949041516,0.2054,4458.3,4458.2,1.50808917]
[1756949041716,0.3119,4458.5,4458.2,1.20098917]
[1756949041917,0.5173,4458.5,4458.4,0.3866]
[1756949042112,0.5173,4458.5,4458.2,0.81438917]
[1756949042113,0.5173,4458.9,4458.8,0.6937]
[1756949042314,0.7211,4459.4,4459.3,0.4972]
[1756949042612,1.25484254,4459.4,4459.3,0.6937]
[1756949042818,1.25484254,4459.4,4459.3,0.1965]
[1756949044227,1.25484254,4459.4,4459.3,0.6937]
[1756949045327,0.53374254,4459.4,4459.3,1.50808917]
[1756949045525,0.5173,4459.8,4459.7,0.6937]
[1756949045827,1.25502591,4459.8,4459.7,0.5036]
[1756949046026,1.25502591,4459.8,4459.7,0.1965]
[1756949046230,0.94312591,4459.8,4459.4,1.12148917]
[1756949046423,0.7211,4459.1,4459.0,0.6937]
[1756949046625,0.2054,4459.1,4459.0,1.62258917]
[1756949047421,0.7211,4459.1,4459.0,1.50808917]
[1756949047729,0.7211,4459.1,4459.0,0.6937]
[1756949049125,0.2054,4459.1,4459.0,1.62258917]
[1756949049430,0.2054,4459.2,4459.1,0.3071]
[1756949049617,0.2054,4459.2,4459.1,0.6937]
[1756949050031,0.5173,4459.2,4459.1,0.6937]
[1756949051027,0.7211,4459.2,4458.7,0.3071]
[1756949051233,0.7211,4459.2,4458.5,1.50808917]
[1756949051234,0.7211,4458.6,4458.5,1.50808917]
[1756949051528,0.7211,4458.6,4458.5,0.6937]
[1756949051725,1.25573916,4458.6,4458.5,0.1965]
[1756949053123,1.25573916,4458.6,4458.5,0.5018]
[1756949053327,1.25573916,4458.6,4458.2,0.81438917]
[1756949053531,0.6805,4458.3,4458.2,1.50218917]
[1756949055130,0.6805,4458.3,4458.2,0.6878]
[1756949055431,0.6805,4458.3,4458.2,1.50218917]
[1756949056020,0.2924,4458.2,4457.7,0.3053]
[1756949056224,0.1141,4458.5,4457.7,0.6878]
[1756949056225,0.1979,4457.8,4457.7,0.6878]
[1756949056427,0.4903,4458.0,4457.9,1.50218917]
[1756949063427,0.4903,4458.0,4457.9,0.6878]
[1756949063631,1.10006678,4459.0,4458.1,0.3053]
[1756949063632,0.2924,4458.9,4458.1,0.3053]
[1756949063833,0.6805,4458.7,4458.6,0.192]
[1756949064131,1.43907317,4458.7,4458.6,0.192]
[1756949064734,1.21479317,4458.7,4458.6,0.192]
[1756949066538,1.21479317,4458.7,4458.4,0.3053]
[1756949066837,0.7946,4458.5,4458.4,0.4973]
[1756949067035,1.32889317,4458.5,4458.1,0.97836678]
[1756949067244,1.32889317,4458.5,4457.1,0.3053]
[1756949067245,0.6805,4458.2,4457.1,0.3053]
[1756949067536,0.4903,4457.9,4457.8,0.192]
[1756949067735,1.21479317,4457.9,4457.8,0.4973]
[1756949069040,1.21479317,4457.9,4457.8,0.192]
[1756949070442,0.6805,4457.2,4457.1,1.47566678]
[1756949070643,0.6805,4457.2,4457.1,0.4973]
[1756949070945,0.6805,4457.2,4457.1,0.6878]
[1756949072742,0.6805,4457.2,4457.1,1.66616678]
[1756949072937,0.1979,4457.3,4457.2,0.6878]
[1756949073143,0.4903,4457.3,4457.2,0.6878]
[1756949075539,0.6805,4457.3,4457.2,0.6878]
[1756949076746,0.6805,4457.3,4457.2,0.4973]
[1756949076943,0.6805,4457.3,4457.2,0.6878]
[1756949078039,0.2924,4457.9,4457.2,0.3825]
[1756949078240,0.2924,4457.7,4457.3,0.3053]
[1756949078440,1.02425198,4457.6,4457.5,0.6878]
[1756949078641,0.53395198,4457.6,4457.5,1.77916678]
[1756949078844,0.6805,4458.2,4458.1,0.6878]
[1756949079142,0.6805,4458.2,4457.5,5.09136678]
[1756949079143,0.6805,4457.6,4457.5,0.4973]
[1756949079349,1.21464668,4457.6,4457.5,0.4973]
[1756949079544,0.73204668,4457.6,4457.5,0.8008]
[1756949079845,0.4065,4458.0,4457.5,0.8008]
[1756949079846,0.4903,4458.0,4457.9,0.3825]
[1756949080040,0.6805,4458.0,4457.9,0.6878]
[1756949080243,1.21481552,4458.0,4457.9,0.6878]
[1756949080441,1.32891552,4458.0,4457.9,0.6878]
[1756949080847,1.21481552,4458.0,4457.9,0.6878]
[1756949082347,0.73221552,4458.0,4457.9,0.6878]
[1756949082747,1.04351552,4458.0,4457.9,0.6878]
[1756949082942,1.24941552,4458.0,4457.9,0.6878]
[1756949091455,1.36621552,4458.0,4457.9,0.6878]
[1756949094056,1.24941552,4458.0,4457.9,0.6878]
[1756949095451,1.36621552,4458.0,4457.6,0.2893]
[1756949095657,0.5081,4457.2,4457.1,0.7003]
[1756949095957,0.5081,4457.2,4457.1,0.92463999]
[1756949096255,0.1968,4457.2,4457.1,0.92463999]
[1756949096453,0.3113,4457.9,4457.2,0.2893]
[1756949096646,0.93841571,4457.8,4457.7,0.2086]
[1756949096842,1.24971571,4457.8,4457.7,0.4979]
[1756949097250,1.24971571,4457.8,4457.0,1.09136678]
[1756949097456,0.1968,4457.2,4457.1,0.92465]
[1756949098859,0.1968,4457.2,4457.1,0.7003]
[1756949100156,0.5081,4457.2,4457.1,0.7003]
[1756949100362,0.714,4457.9,4457.8,0.4917]
[1756949100561,1.24982032,4457.9,4457.8,0.7003]
[1756949103263,0.93852032,4457.9,4457.5,0.97836678]
[1756949103559,0.3113,4457.2,4457.1,0.2086]
[1756949103762,0.714,4456.8,4456.7,0.411]
[1756949104059,1.24982032,4456.8,4456.7,0.411]
[1756949104260,1.24982032,4456.8,4456.7,0.7003]
[1756949104762,0.93852032,4456.8,4456.1,0.2893]
[1756949104958,0.1168,4457.0,4456.1,1.67866678]
[1756949104959,0.714,4456.2,4456.1,1.67866678]
[1756949105161,0.714,4456.2,4456.1,0.4979]
[1756949105367,0.714,4456.2,4456.1,0.2086]
[1756949107265,0.714,4456.2,4456.1,1.67866678]
[1756949107766,0.3113,4456.9,4456.2,0.2893]
[1756949107968,1.24880124,4456.8,4456.7,0.2086]
[1756949108672,1.24880124,4456.8,4456.7,0.7003]
[1756949108968,0.714,4456.8,4456.7,0.4979]
[1756949109158,1.24869374,4456.8,4456.7,0.4979]
[1756949109364,1.24869374,4456.8,4456.7,0.2086]
[1756949109767,0.93739374,4456.8,4456.3,0.97836678]
[1756949109968,1.24869374,4456.7,4456.6,0.7003]
[1756949110366,0.714,4456.7,4456.6,0.7003]
[1756949111072,0.3113,4457.2,4456.7,0.2893]
[1756949111260,0.3113,4457.6,4457.1,0.2893]
[1756949111464,0.714,4457.6,4457.5,0.7003]
[1756949111671,1.24853777,4457.6,4457.5,0.7003]
[1756949112069,0.1968,4457.6,4457.5,0.8237]
[1756949112568,0.4958,4457.6,4457.5,0.8237]
[1756949113672,0.1968,4457.6,4457.5,0.8237]
[1756949113870,0.6908,4457.6,4457.5,0.7003]
[1756949115868,0.1968,4457.6,4457.5,0.8237]
[1756949116069,0.299,4457.9,4457.5,0.5344]
[1756949116372,1.0228649,4457.8,4457.7,0.6851]
[1756949116574,0.5346649,4457.8,4457.7,1.66346678]
[1756949117374,0.1892,4457.8,4457.7,1.66346678]
[1756949117577,0.4882,4457.8,4457.7,1.66346678]
[1756949118178,1.02275159,4457.8,4457.7,1.66346678]
[1756949118377,0.6832,4457.8,4457.7,0.4856]
[1756949118575,0.6832,4457.1,4457.0,0.3981]
[1756949119272,0.6832,4457.1,4457.0,0.6851]
[1756949119873,0.1202,4457.0,4456.5,0.122]
[1756949120082,0.6832,4456.7,4456.6,0.4856]
[1756949120370,0.3842,4456.4,4456.3,0.4856]
[1756949120571,0.6832,4456.4,4456.3,0.6851]
[1756949121380,0.6832,4456.4,4456.1,0.97836678]
[1756949121568,0.299,4456.3,4456.1,1.26536678]
[1756949121770,0.299,4456.3,4455.7,0.287]
[1756949121771,0.299,4456.2,4455.7,0.287]
[1756949121967,0.3842,4455.8,4455.7,0.3981]
[1756949122180,0.6832,4455.8,4455.7,0.6851]
[1756949123675,4.3842,4455.8,4455.1,0.287]
[1756949123874,0.1892,4455.2,4455.1,0.6851]
[1756949124078,0.299,4455.5,4455.2,0.287]
[1756949124274,0.4882,4455.5,4455.4,1.501432]
[1756949124882,0.6832,4455.5,4455.4,1.501432]
[1756949125471,0.6832,4455.5,4453.7,32.319]
[1756949125472,6.60141266,4455.5,4453.6,0.287]
[1756949125676,6.60141266,4455.5,4453.5,0.1234]
[1756949125677,0.3842,4454.1,4454.0,0.8085]
[1756949126083,0.1892,4454.1,4454.0,0.8085]
[1756949127185,0.299,4454.5,4454.0,0.8085]
[1756949127382,0.1892,4454.3,4454.2,0.287]
[1756949127684,0.3842,4454.3,4454.2,0.6851]
[1756949127878,0.6832,4454.3,4454.2,0.6851]
[1756949129772,0.6832,4454.3,4454.2,0.287]
[1756949132092,0.299,4454.8,4454.2,0.3981]
[1756949132392,0.1892,4454.8,4454.6,0.287]
[1756949132687,0.3842,4454.8,4454.7,0.6851]
[1756949135287,1.343332,4455.1,4454.7,0.6851]
[1756949135288,0.1892,4455.1,4455.0,0.5215]
[1756949135480,0.1122,4455.4,4455.3,0.6851]
[1756949135679,0.6832,4455.4,4455.0,0.1234]
[1756949135886,0.816332,4455.5,4454.5,0.8085]
[1756949135887,0.6832,4454.6,4454.5,0.8085]
[1756949136185,1.499532,4454.6,4454.5,0.8085]
[1756949136385,1.200532,4454.6,4454.5,0.8085]
[1756949136590,0.3842,4454.6,4454.5,0.8085]
[1756949136790,0.1892,4454.6,4454.5,0.8085]
[1756949140388,0.3842,4454.6,4454.5,0.8085]
[1756949141192,0.1892,4454.6,4454.5,0.8085]
[1756949141395,0.1122,4454.8,4454.7,0.6851]
[1756949141582,0.0601,4457.5,4454.7,0.6851]
[1756949141583,0.228,4455.4,4454.7,0.6851]
[1756949141788,0.6122,4455.4,4455.3,0.6851]
[1756949141989,0.9095,4455.4,4455.3,0.6851]
[1756949142988,0.6122,4455.4,4455.3,0.6851]
[1756949143590,0.79317752,4455.4,4455.3,0.6851]
[1756949143791,0.18097752,4455.4,4455.3,1.501432]
[1756949144195,0.1122,4455.6,4455.5,0.8058]
[1756949144498,0.18105625,4455.6,4455.5,0.5231]
[1756949144794,0.1977,4455.9,4455.8,0.6841]
[1756949144997,0.3787555,4455.9,4455.8,0.6841]
[1756949147992,0.1810555,4455.9,4455.8,0.6841]
[1756949148391,0.3787555,4455.9,4455.8,0.6841]
[1756949149094,0.91430998,4455.9,4455.8,0.6841]
[1756949149993,0.71660998,4455.9,4455.8,0.6841]
[1756949152298,0.91430998,4455.9,4455.8,0.6841]
[1756949152900,0.71660998,4455.9,4455.8,0.6841]
[1756949155702,0.91430998,4455.9,4455.8,0.6841]
[1756949158195,0.71660998,4455.9,4455.8,0.6841]
[1756949159497,0.71660998,4455.9,4455.8,0.90852]
[1756949159694,0.1122,4456.1,4456.0,0.8058]
[1756949159896,0.9165,4457.0,4456.9,0.6841]
[1756949160091,0.9165,4457.0,4456.5,0.938032]
[1756949160092,0.3912,4456.6,4456.5,1.299932]
[1756949160296,0.6885,4456.6,4456.5,1.500432]
[1756949160601,0.6885,4456.6,4456.5,0.6841]
[1756949162104,0.6885,4455.7,4455.3,0.2827]
[1756949162299,0.1977,4454.7,4454.6,1.017232]
[1756949162501,0.1156,4455.0,4454.6,1.217732]
[1756949162703,0.3133,4455.0,4454.9,1.217732]
[1756949163408,0.6106,4455.0,4454.9,1.217732]
[1756949164508,0.8041,4455.0,4454.9,1.217732]
[1756949166006,0.8041,4455.0,4454.9,0.4014]
[1756949166206,0.8041,4455.0,4454.9,1.217732]
[1756949169517,0.2973,4455.0,4454.9,1.430332]
[1756949170217,0.6106,4455.0,4454.9,1.430332]
[1756949171515,1.14752496,4455.0,4454.9,1.430332]
[1756949171714,1.32746832,4455.0,4454.9,0.614]
[1756949171916,1.32746832,4455.0,4454.9,1.430332]
[1756949173114,0.53692496,4455.0,4454.9,1.430332]
[1756949173313,0.3128,4455.4,4455.3,0.4019]
[1756949173520,0.5031,4455.4,4455.3,1.430932]
[1756949173818,1.04020781,4455.4,4455.3,1.218232]
[1756949174316,0.53710781,4455.4,4455.3,1.431432]
[1756949174510,0.84990781,4455.4,4455.3,1.431432]
[1756949174716,0.53710781,4455.4,4455.3,1.431432]
[1756949175017,0.8129,4456.0,4455.5,0.2132]
[1756949175225,0.5031,4455.4,4455.3,1.218232]
[1756949175524,0.6973,4455.4,4455.3,1.218232]
[1756949178519,0.5031,4455.4,4455.3,1.218232]
[1756949178721,0.3128,4455.9,4455.3,1.431432]
[1756949178910,0.6973,4455.9,4455.8,1.218232]
[1756949179125,1.23471591,4455.9,4455.8,1.218232]
[1756949181827,1.23471591,4455.9,4455.8,1.431432]
[1756949182530,0.53741591,4455.9,4455.8,1.431432]
[1756949182729,1.72380499,4457.0,4455.9,0.2132]
[1756949182730,0.3128,4456.7,4455.9,0.2132]
[1756949182936,0.5031,4456.7,4456.6,0.4019]
[1756949183334,1.04026779,4456.7,4456.6,0.4019]
[1756949184742,0.84996779,4456.7,4456.6,0.6151]
[1756949184941,0.53716779,4456.7,4456.6,0.6151]
[1756949185143,0.1168,4457.0,4456.8,0.4019]
[1756949185338,1.03965213,4456.9,4456.8,0.4019]
[1756949185737,1.03965213,4456.9,4456.8,0.6151]
[1756949186344,0.3128,4457.3,4456.8,4.62627]
[1756949186637,0.1168,4457.5,4457.4,0.6151]
[1756949186638,0.3128,4457.5,4457.4,0.6151]
[1756949186841,0.1168,4458.0,4457.2,0.97880708]
[1756949186842,0.3071,4458.0,4457.9,0.4019]
[1756949187032,0.6199,4458.0,4457.9,1.38070708]
[1756949187239,0.6199,4458.0,4457.9,1.59390708]
[1756949187548,0.3128,4458.4,4457.9,1.59390708]
[1756949187736,0.5031,4458.2,4458.1,0.4019]
[1756949187933,1.23312495,4458.2,4458.1,0.4019]
[1756949188139,0.1168,4458.0,4457.9,0.97880708]
[1756949188436,0.8141,4458.0,4457.9,0.97880708]
[1756949188637,0.8141,4458.0,4457.9,1.17630708]
[1756949189244,0.8141,4458.0,4457.9,1.38070708]
[1756949190642,0.8141,4458.0,4457.9,1.17630708]
[1756949191340,0.8141,4458.0,4457.9,0.1975]
[1756949191549,0.8141,4457.0,4456.9,0.4019]
[1756949192238,0.3128,4457.0,4456.9,0.6149]
[1756949192441,0.1168,4457.5,4456.9,0.6149]
[1756949192738,0.1168,4457.5,4457.4,1.38070708]
[1756949192739,0.8141,4457.5,4457.4,1.38070708]
[1756949193047,0.4296,4457.5,4457.4,1.59370708]
[1756949193238,0.6199,4457.5,4457.4,1.38070708]
[1756949193441,0.8141,4457.5,4457.4,1.38070708]
[1756949196950,0.6199,4457.5,4457.4,1.59370708]
[1756949197844,0.6199,4457.5,4457.4,1.38070708]
[1756949198050,0.5013,4457.0,4456.9,1.38070708]
[1756949198248,0.8141,4457.0,4456.9,1.38070708]
[1756949198450,0.8141,4457.0,4456.9,1.17630708]
[1756949200944,0.8141,4457.0,4456.9,1.38070708]
[1756949205350,0.1168,4457.5,4456.9,0.97880708]
[1756949205554,0.5292,4457.5,4457.4,1.37090708]
[1756949206054,0.8131,4457.5,4457.4,1.37090708]
[1756949206256,1.34766625,4457.5,4457.4,1.37090708]
[1756949208454,1.34766625,4457.5,4457.4,1.16820708]
[1756949208653,1.34766625,4457.5,4457.4,0.97880708]
[1756949208860,0.2063,4456.7,4456.6,1.58340708]
[1756949209058,0.6963,4456.7,4456.6,1.37090708]
[1756949211155,1.23208978,4456.7,4456.6,1.37090708]
[1756949211356,1.23208978,4456.7,4456.6,1.16820708]
[1756949214363,0.6963,4456.7,4456.6,1.16820708]
[1756949216665,0.6963,4456.7,4456.6,1.37090708]
[1756949217363,0.6963,4456.7,4456.6,1.58340708]
[1756949218259,0.6963,4456.7,4456.6,0.6201]
[1756949218453,0.4902,4456.7,4456.6,0.8326]
[1756949218658,0.2839,4456.7,4456.6,1.81140708]
[1756949223259,0.4902,4456.7,4456.6,1.81140708]
[1756949226664,1.02674172,4456.7,4456.6,1.81140708]
[1756949227460,0.4902,4456.7,4456.6,1.81140708]
[1756949228069,1.02680498,4456.7,4456.6,1.81140708]
[1756949229467,1.02687171,4456.7,4456.6,1.81140708]
[1756949234964,1.02687171,4456.7,4456.6,1.59890708]
[1756949235170,1.22207171,4456.7,4456.6,1.59890708]
[1756949236167,0.82057171,4456.7,4456.6,1.81140708]
[1756949238171,0.1158,4457.5,4456.8,0.4032]
[1756949238368,0.84865323,4457.4,4457.3,0.6157]
[1756949239068,1.04485323,4457.4,4457.3,0.6157]
[1756949239463,1.04485323,4457.4,4457.3,1.59450708]
[1756949241373,0.84865323,4457.4,4457.3,1.59450708]
[1756949242679,0.3119,4457.4,4457.3,1.59450708]
[1756949242974,0.3119,4457.9,4457.4,0.2125]
[1756949243176,0.5081,4457.9,4457.8,1.38200708]
[1756949243473,0.5081,4457.9,4457.8,1.59450708]
[1756949243474,0.8485182,4457.9,4457.8,1.59450708]
[1756949244178,0.5366182,4457.9,4457.8,1.59450708]
[1756949244971,0.8485182,4457.9,4457.8,1.59450708]
[1756949247479,0.8485182,4457.9,4457.8,1.43087644]
[1756949248180,1.0447182,4457.9,4457.8,1.43087644]
[1756949249376,0.5081,4457.9,4457.8,1.21837644]
[1756949249680,1.0438356,4457.9,4457.8,1.21837644]
[1756949250374,0.5081,4457.9,4457.8,1.21837644]
[1756949250770,0.7033,4457.9,4457.8,1.21837644]
[1756949251871,0.3119,4457.9,4457.8,2.24605288]
[1756949252574,0.3119,4458.4,4458.3,0.4032]
[1756949252785,0.1167,4459.0,4458.3,1.65787644]
[1756949252985,1.04404784,4458.9,4458.8,0.4032]
[1756949253180,1.04404784,4458.9,4458.8,1.21837644]
[1756949253784,1.04404784,4458.9,4458.8,1.43087644]
[1756949254386,0.5081,4458.9,4458.8,1.43087644]
[1756949255082,0.5081,4458.9,4458.8,1.21837644]
[1756949255280,0.7033,4458.9,4458.8,1.21837644]
[1756949255786,0.7033,4458.9,4458.8,0.81517644]
[1756949255988,0.92757001,4458.9,4458.8,0.81517644]
[1756949256685,0.7033,4458.9,4458.8,0.81517644]
[1756949262396,0.3119,4458.9,4458.8,1.42547644]
[1756949263394,0.3003,4459.4,4458.9,0.2118]
[1756949263697,0.3003,4459.2,4459.1,0.6184]
[1756949264091,0.1167,4459.5,4459.1,0.4066]
[1756949264398,0.1167,4459.5,4458.5,0.49518]
[1756949264399,0.3003,4459.4,4459.3,0.6184]
[1756949264796,0.3003,4459.4,4459.3,1.43357644]
[1756949265293,0.4023,4459.4,4458.7,0.2118]
[1756949265498,0.7026,4459.4,4459.3,1.01817644]
[1756949266790,0.7026,4459.4,4459.3,1.22177644]
[1756949267892,0.7026,4459.4,4459.3,0.81517644]
[1756949268697,0.7026,4459.4,4459.3,1.22177644]
[1756949268897,0.7026,4459.4,4459.3,1.01817644]
[1756949269100,0.7026,4459.4,4459.3,0.81517644]